fUSD/lending_fUSD_20240722
["ID","MTS","AMOUNT","RATE_DAILY","PERIOD"]
[332889841,1721636476326,151.072217,0.00024,82]
[332889842,1721636476374,151.072217,0.00024,82]
[332889843,1721636476695,151.072217,0.00024,82]
[332889844,1721636480005,151.072217,0.00024,83]
[332889845,1721636480438,151.072217,0.00024,83]
[332889846,1721636480912,151.072217,0.00024,83]
[332889847,1721636481385,151.072217,0.00024,83]
[332889848,1721636481842,151.072217,0.00024,83]
[332889849,1721636484954,151.072217,0.00024,84]
[332889850,1721636485437,151.072217,0.00024,84]
[332889851,1721636485865,151.072217,0.00024,84]
[332889852,1721636487852,151.072217,0.00024,84]
[332889853,1721636487951,151.072217,0.00024,84]
[332889854,1721636495005,151.072217,0.00025,120]
[332889855,1721636495349,151.072217,0.00025,120]
[332889856,1721636495731,151.072217,0.00025,120]
[332889857,1721636496146,151.072217,0.00025,120]
[332889858,1721636496471,151.072217,0.00025,120]
[332889859,1721636496851,151.072217,0.00025,120]
[332889860,1721636497233,151.072217,0.00025,120]
[332889861,1721636497643,151.072217,0.00025,120]
[332889862,1721636499661,151.072217,0.00025,120]
[332889863,1721636499722,151.072217,0.00025,120]
[332889864,1721636499791,151.072217,0.00025,120]
[332889865,1721636499841,151.072217,0.00025,120]
[332889866,1721636499898,151.072217,0.00025,120]
[332889867,1721636500002,151.072217,0.00025,120]
[332889868,1721636500366,151.072217,0.00025,120]
[332889869,1721636500763,151.072217,0.00025,120]
[332889870,1721636501148,151.072217,0.00025,120]
[332889871,1721636501595,151.072217,0.00025,120]
[332889872,1721636501934,151.072217,0.00025,120]
[332889873,1721636502317,151.072217,0.00025,120]
[332889874,1721636502725,151.072217,0.00025,120]
[332889875,1721636503110,151.072217,0.00025,120]
[332889876,1721636503498,151.072217,0.00025,120]
[332889877,1721636503872,151.072217,0.00025,120]
[332889878,1721636504976,151.072217,0.00025,120]
[332889879,1721636505015,151.072217,0.00025,120]
[332889880,1721636505082,151.072217,0.00025,120]
[332889881,1721636524417,152.072217,0.00025,120]
[332889882,1721636524842,152.072217,0.00025,120]
[332889883,1721636525253,152.072217,0.00025,120]
[332889884,1721636525665,152.072217,0.00025,120]
[332889885,1721636526466,152.072217,0.00025,120]
[332889886,1721636526510,152.072217,0.00025,120]
[332889887,1721636526897,152.072217,0.00025,120]
[332889888,1721636527307,152.072217,0.00025,120]
[332889889,1721636527732,152.072217,0.00025,120]
[332889890,1721636528118,152.072217,0.00025,120]
[332889891,1721636548135,153.072217,0.00025,120]
[332889892,1721636548232,153.072217,0.00025,120]
[332889893,1721636548493,153.072217,0.00025,120]
[332889894,1721636548557,153.072217,0.00025,120]
[332889895,1721636548618,153.072217,0.00025,120]
[332889896,1721636548752,153.072217,0.00025,120]
[332889897,1721636548900,153.072217,0.00025,120]
[332889898,1721636549318,153.072217,0.00025,120]
[332889899,1721636549751,153.072217,0.00025,120]
[332889900,1721636550187,153.072217,0.00025,120]
[332889901,1721636551015,153.072217,0.00025,120]
[332889902,1721636551452,153.072217,0.00025,120]
[332889903,1721636551882,153.072217,0.00025,120]
[332889904,1721636552340,153.072217,0.00025,120]
[332889905,1721636552756,153.072217,0.00025,120]
[332889906,1721636553164,153.072217,0.00025,120]
[332889907,1721636553989,153.072217,0.00025,120]
[332889908,1721636554259,153.072217,0.00025,120]
[332889909,1721636566170,153.072217,0.00025,120]
[332889910,1721636577852,153.072217,0.00024,60]
[332889911,1721636579250,153.072217,0.00024,60]
[332889912,1721636579617,153.072217,0.00024,60]
[332889913,1721636580118,153.072217,0.00024,60]
[332889914,1721636580604,153.072217,0.00024,60]
[332889915,1721636581100,153.072217,0.00024,60]
[332889916,1721636584845,153.072217,0.00024,61]
[332889917,1721636585372,153.072217,0.00024,61]
[332889918,1721636585847,153.072217,0.00024,61]
[332889919,1721636586316,153.072217,0.00024,61]
[332889920,1721636589630,153.072217,0.00024,62]
[332889921,1721636590128,153.072217,0.00024,62]
[332889922,1721636590606,153.072217,0.00024,62]
[332889923,1721636591111,153.072217,0.00024,62]
[332889924,1721636595422,275.99,8.448e-05,2]
[332889925,1721636595632,275.99,0.00010712,2]
[332889926,1721636606849,154.072217,0.00024,63]
[332889927,1721636610222,154.072217,0.00024,64]
[332889928,1721636613455,154.072217,0.00024,65]
[332889929,1721636620618,155.072217,0.00024,66]
[332889930,1721636621038,155.072217,0.00024,66]
[332889931,1721636621446,155.072217,0.00024,66]
[332889932,1721636621894,155.072217,0.00024,66]
[332889933,1721636622354,155.072217,0.00024,66]
[332889934,1721636623109,155.072217,0.00024,66]
[332889935,1721636626739,155.072217,0.00024,67]
[332889936,1721636627196,155.072217,0.00024,67]
[332889937,1721636627648,155.072217,0.00024,67]
[332889938,1721636628113,155.072217,0.00024,67]
[332889939,1721636630224,155.072217,0.00024,67]
[332889940,1721636630285,155.072217,0.00024,67]
[332889941,1721636630339,155.072217,0.00024,67]
[332889942,1721636633182,155.072217,0.00024,68]
[332889943,1721636633634,155.072217,0.00024,68]
[332889944,1721636634118,155.072217,0.00024,68]
[332889945,1721636634617,155.072217,0.00024,68]
[332889946,1721636635158,155.072217,0.00024,68]
[332889947,1721636641976,155.072217,0.00024,69]
[332889948,1721636642034,155.072217,0.00024,69]
[332889949,1721636642084,155.072217,0.00024,69]
[332889950,1721636642165,155.072217,0.00024,69]
[332889951,1721636642579,155.072217,0.00024,69]
[332889952,1721636650818,155.072217,0.00025,120]
[332889953,1721636651368,155.072217,0.00025,120]
[332889954,1721636651884,155.072217,0.00025,120]
[332889955,1721636654227,155.072217,0.00025,120]
[332889956,1721636659896,155.072217,0.00025,120]
[332889957,1721636660273,155.072217,0.00025,120]
[332889958,1721636660772,155.072217,0.00025,120]
[332889959,1721636661314,155.072217,0.00025,120]
[332889960,1721636680427,155.072217,0.00024,63]
[332889961,1721636683651,155.072217,0.00024,64]
[332889962,1721636686725,155.072217,0.00024,65]
[332889963,1721636690157,155.072217,0.00024,66]
[332889964,1721636693007,155.072217,0.00024,67]
[332889965,1721636696007,155.072217,0.00024,68]
[332889966,1721636701023,155.072217,0.00024,69]
[332889967,1721636715061,155.072217,0.00024,70]
[332889968,1721636729148,156.072217,0.00024,71]
[332890038,1721636817516,250.0,0.00010959,2]
[332890058,1721636899977,250.0,0.00010356,2]
[332890060,1721636940600,1000.0,0.00025,120]
[332890061,1721636947332,200.0,0.00010362,2]
[332890067,1721637031424,-155.0,0.00011105,2]
[332890068,1721637031433,-196.89855854,0.00011105,2]
[332890069,1721637031534,-465.1842,0.00011105,2]
[332890070,1721637031545,-648.10144146,0.00011105,2]
[332890071,1721637031592,-247.59259193,0.00011105,2]
[332890072,1721637031602,-266.99501043,0.00011105,2]
[332890073,1721637031611,-273.69957642,0.00011105,2]
[332890074,1721637031621,-156.04270339,0.00011105,2]
[332890075,1721637031630,-155.0,0.00011105,2]
[332890076,1721637031640,-301.79102318,0.00011105,2]
[332890077,1721637031650,-155.59190676,0.00011105,2]
[332890078,1721637031659,-264.49,0.0001114,2]
[332890079,1721637031668,-264.49,0.00011143,2]
[332890080,1721637031677,-264.49,0.00011146,2]
[332890081,1721637031686,-264.49,0.00011149,2]
[332890082,1721637031695,-264.49,0.00011152,2]
[332890083,1721637031705,-264.49,0.00011155,2]
[332890084,1721637031714,-264.49,0.00011158,2]
[332890085,1721637031723,-264.49,0.00011161,2]
[332890086,1721637031732,-264.49,0.00011164,2]
[332890087,1721637031741,-264.49,0.00011167,2]
[332890088,1721637031751,-264.49,0.0001117,2]
[332890089,1721637031760,-264.49,0.00011173,2]
[332890090,1721637031769,-264.49,0.00011176,2]
[332890091,1721637031778,-264.49,0.00011179,2]
[332890092,1721637031787,-264.49,0.00011181,2]
[332890093,1721637031796,-264.49,0.00011184,2]
[332890094,1721637031806,-997.15273539,0.00011186,2]
[332890095,1721637031815,-264.49,0.00011187,2]
[332890096,1721637031824,-264.49,0.0001119,2]
[332890097,1721637031833,-264.49,0.00011193,2]
[332890098,1721637031842,-264.49,0.00011196,2]
[332890099,1721637031852,-266.87528619,0.00011322,2]
[332890100,1721637031862,-211.096894,0.0001143,2]
[332890101,1721637031871,-242.699004,0.0001143,2]
[332890102,1721637031880,-150.0,0.00011555,2]
[332890103,1721637031889,-646.13790204,0.00011623,2]
[332890104,1721637031898,-167.05516025,0.00011644,2]
[332890105,1721637031907,-988.88456871,0.00011644,2]
[332890106,1721637031917,-200.0,0.00011658,2]
[332890107,1721637031926,-500.7471371,0.00011662,2]
[332890108,1721637031935,-154.33032649,0.00011697,2]
[332890109,1721637031944,-1418.86523184,0.000117,2]
[332890113,1721637037640,-280.44791735,0.00011206,2]
[332890114,1721637037650,-240.46218265,0.000117,2]
[332890287,1721637039602,-191.06852556,0.0001169,2]
[332890288,1721637039612,-191.06852556,0.0001169,2]
[332890289,1721637039621,-332.00221755,0.000117,2]
[332890290,1721637039663,-797.61288014,0.000117,2]
[332890291,1721637039675,-18918.55938786,0.000117,2]
[332890292,1721637039722,-66712.0295166,0.000117,2]
[332890293,1721637039734,-52299.29495221,0.000117,2]
[332890294,1721637039782,-9459.0,0.000117,2]
[332890296,1721637039794,-1447.08866371,0.000117,2]
[332890297,1721637039898,-342.30596684,0.00011324,2]
[332890298,1721637039958,-1048.21934277,0.00011324,2]
[332890383,1721637042722,-2921.43270463,0.00011324,2]
[332890384,1721637042732,-82472.55862265,0.000117,2]
[332890398,1721637046863,-3350.55096394,0.000117,2]
[332890399,1721637046877,-673.04696,0.000117,2]
[332890400,1721637046898,-8141.37207907,0.000117,2]
[332890401,1721637046910,-94400.89957872,0.000117,2]
[332890402,1721637046921,-527.11937764,0.000117,2]
[332890403,1721637046933,-432.00902886,0.000117,2]
[332890404,1721637046944,-557.8322401,0.000117,2]
[332890405,1721637046956,-673.784446,0.000117,2]
[332890406,1721637046967,-879.9737992,0.000117,2]
[332890407,1721637046978,-8786.32937079,0.000117,2]
[332890409,1721637071642,257.89,0.00010989,2]
[332890427,1721637200328,298.01,0.00011,2]
[332890428,1721637202533,169.01,0.00010888,2]
[332890429,1721637228178,248.39,8.975e-05,2]
[332890430,1721637370324,585.60823088,0.00010879,2]
[332890431,1721637379493,206.34567107,0.00010879,2]
[332890432,1721637394252,414.01891517,0.00010879,2]
[332890433,1721637403066,250.0,0.00010959,2]
[332890434,1721637426318,250.0,0.00010795,2]
[332890435,1721637480337,880.0,0.00010792,2]
[332890436,1721637786327,235.97,8.954e-05,2]
[332890437,1721637845021,156.25940772,0.00010853,2]
[332890438,1721637871597,67.93903472,0.00010965,2]
[332890439,1721637871620,1170.63096528,0.00010965,2]
[332890440,1721638040518,250.0,0.00010959,2]
[332890453,1721638202057,1000.0,0.00010825,2]
[332890464,1721638233018,-300.0,0.00011104,2]
[332890465,1721638233032,-519.51657514,0.00011105,2]
[332890466,1721638233041,-155.0,0.00011105,2]
[332890467,1721638233051,-649.0349847,0.00011105,2]
[332890468,1721638233060,-846.23137608,0.00011105,2]
[332890469,1721638233069,-186.71691214,0.00011105,2]
[332890470,1721638233079,-155.0,0.00011105,2]
[332890471,1721638233088,-531.60155554,0.00011105,2]
[332890472,1721638233098,-16.0485964,0.00011178,2]
[332890487,1721638239696,-133.9514036,0.00011178,2]
[332890488,1721638239705,-538.0485964,0.00011186,2]
[332890489,1721638239805,-22092.56642382,0.00011186,2]
[332890490,1721638239814,-155.44365846,0.00011186,2]
[332890491,1721638239824,-235.97,0.00011218,2]
[332890492,1721638239833,-183.084529,0.0001143,2]
[332890493,1721638239842,-276.41441183,0.00011525,2]
[332890494,1721638239851,-158.79626674,0.00011525,2]
[332890495,1721638239861,-3000.0,0.0001158,2]
[332890496,1721638239869,-219.83,0.00011589,3]
[332890497,1721638239879,-183.084529,0.00011621,2]
[332890498,1721638239888,-181.4307852,0.00011622,2]
[332890499,1721638239898,-850.60358648,0.00011646,2]
[332890500,1721638239908,-378.6853528,0.00011662,2]
[332890501,1721638239918,-191.06852556,0.0001169,2]
[332890502,1721638239926,-150.0,0.00011691,2]
[332890503,1721638239936,-230747.19112204,0.000117,2]
[332890694,1721638246173,-6746.41980061,0.000117,2]
[332890695,1721638246471,-19643.30036872,0.00011105,2]
[332890696,1721638246974,-11119.80009113,0.00011105,2]
[332890697,1721638246985,-11920.88064872,0.00011105,2]
[332890698,1721638246996,-2017.54980402,0.00011105,2]
[332890699,1721638247007,-522.81709702,0.00011105,2]
[332890700,1721638247018,-635.84286283,0.00011105,2]
[332890701,1721638344077,239.8,8.962e-05,2]
[332890702,1721638392114,190.65758451,0.00010863,2]
[332890703,1721638471062,501.31,0.00010959,2]
[332890704,1721638473215,200.0,0.00010862,2]
[332890705,1721638474462,1573.16,0.00010862,2]
[332890706,1721638532507,169.48,0.00010819,2]
[332890707,1721638562973,250.0,0.00010808,2]
[332890708,1721638572967,250.0,0.00010959,2]
[332890709,1721638606273,4204.96145021,0.00010816,2]
[332890710,1721638606297,10000.0,0.00010816,2]
[332890711,1721638606320,9695.03854979,0.00010816,2]
[332890712,1721638608899,500.0,0.00024,60]
[332890713,1721638616559,150.0,0.00010959,2]
[332890714,1721638620623,176.0,0.00025,120]
[332890715,1721638649342,154.96145021,0.00010796,2]
[332890716,1721638649366,95.03854979,0.00010796,2]
[332890719,1721638736267,200.0,0.00010799,2]
[332890723,1721638860772,3235.78,0.00010959,2]
[332890724,1721638928618,227.81,8.878e-05,2]
[332890725,1721639005011,500.0,0.0001075,2]
[332890726,1721639095728,250.0,0.00010959,2]
[332890727,1721639319034,1512.47,0.00010716,2]
[332890728,1721639343874,920.0,0.00010716,2]
[332890762,1721639432418,-300.7497307,0.00011005,2]
[332890763,1721639432428,-300.0,0.00011104,2]
[332890764,1721639432438,-665.95391767,0.00011105,2]
[332890765,1721639432449,-967.82884568,0.00011105,2]
[332890766,1721639432610,-2101.31285773,0.00011105,2]
[332890767,1721639432640,-404.71350648,0.00011105,2]
[332890768,1721639432649,-155.33694978,0.00011105,2]
[332890769,1721639432658,-601.28977905,0.00011105,2]
[332890770,1721639432671,-215.28785572,0.00011105,2]
[332890771,1721639432680,-682.88898112,0.00011105,2]
[332890772,1721639433429,-107.14851417,0.00011105,2]
[332890773,1721639433439,-1157.53532907,0.00011105,2]
[332890774,1721639433448,-10663.92646917,0.00011105,2]
[332890775,1721639433458,-1073.0035856,0.00011105,2]
[332890776,1721639433472,-227.81,0.00011142,2]
[332890777,1721639433482,-22630.61502022,0.00011186,2]
[332890778,1721639433492,-155.0,0.00011186,2]
[332890779,1721639433502,-349.14572823,0.00011384,2]
[332890780,1721639433511,-196.78351634,0.00011387,2]
[332890781,1721639433521,-184.105863,0.0001143,2]
[332890782,1721639433530,-431.9273718,0.00011525,2]
[332890783,1721639433539,-342.13318843,0.00011525,2]
[332890784,1721639433549,-2473.58194,0.0001158,2]
[332890785,1721639433559,-179.99,0.0001158,2]
[332890786,1721639433568,-11615.0,0.00011583,2]
[332890787,1721639433578,-2044.8298,0.000116,2]
[332890788,1721639433588,-1000.0,0.000116,2]
[332890789,1721639433598,-1192.503,0.000116,2]
[332890790,1721639433608,-5587.7852,0.000116,2]
[332890791,1721639433618,-1009.5846,0.000116,2]
[332890792,1721639433628,-1800.12813172,0.000116,2]
[332890793,1721639433637,-181.4307852,0.00011633,2]
[332890794,1721639433646,-189.3426764,0.00011662,2]
[332890795,1721639433656,-11254.61035606,0.0001169,2]
[332890796,1721639433667,-182.70914437,0.0001169,2]
[332890797,1721639433676,-308.66065298,0.00011697,2]
[332890798,1721639433686,-523.0,0.000117,2]
[332890799,1721639433696,-208018.6381138,0.000117,2]
[332890800,1721639433834,-752.35031756,0.000117,2]
[332890801,1721639433845,-588552.54053877,0.000117,2]
[332890802,1721639433856,-7767.54302045,0.000117,2]
[332890803,1721639433868,-1472942.42783909,0.000117,2]
[332890804,1721639433887,-676.1,0.000117,2]
[332890805,1721639433918,-766.70047964,0.000117,2]
[332890806,1721639433929,-674.143596,0.000117,2]
[332890807,1721639434035,-732.10144154,0.000117,2]
[332890808,1721639434047,-2871.78515676,0.000117,2]
[332890809,1721639434058,-1533.16988502,0.000117,2]
[332890810,1721639434070,-10808.08059513,0.000117,2]
[332890824,1721639437956,-197.89000556,0.00011161,2]
[332890825,1721639437970,-28552.11049444,0.000117,2]
[332890826,1721639438016,-28678.38838452,0.000117,2]
[332890827,1721639438028,-1201.4716007,0.000117,2]
[332890828,1721639438075,-1772.0999997,0.000117,2]
[332890833,1721639442584,-999287.76751762,0.000117,2]
[332890844,1721639444065,-1293.12373914,0.00011525,2]
[332890845,1721639444074,-18757.75070178,0.000117,2]
[332890846,1721639444176,-1175.8278953,0.000117,2]
[332890847,1721639444185,-200.0,0.000117,2]
[332890848,1721639444195,-500.0,0.00011742,2]
[332890849,1721639444204,-177.63,0.00011746,2]
[332890850,1721639444213,-500.0,0.0001175,2]
[332890851,1721639444224,-500.0,0.00011759,2]
[332890852,1721639444234,-500.0,0.00011768,2]
[332890853,1721639444243,-500.0,0.00011777,2]
[332890854,1721639444254,-500.0,0.00011786,2]
[332890855,1721639444263,-500.0,0.00011794,2]
[332890856,1721639444272,-1203.414,0.000118,2]
[332890857,1721639444282,-425.44,0.000118,2]
[332890858,1721639444291,-1101.92144674,0.000118,2]
[332890859,1721639444301,-500.0,0.00011803,2]
[332890860,1721639444310,-500.0,0.00011805,2]
[332890861,1721639444319,-183.084529,0.00011811,2]
[332890862,1721639444329,-500.0,0.00011812,2]
[332890863,1721639444338,-500.0,0.00011812,2]
[332890864,1721639444347,-200.0,0.00011817,2]
[332890865,1721639444356,-500.0,0.00011821,2]
[332890866,1721639444364,-500.0,0.00011821,2]
[332890867,1721639444373,-500.0,0.0001183,2]
[332890868,1721639444382,-500.0,0.0001183,2]
[332890869,1721639444391,-500.0,0.00011838,2]
[332890870,1721639444400,-500.0,0.00011838,2]
[332890871,1721639444409,-500.0,0.00011847,2]
[332890872,1721639444418,-500.0,0.00011847,2]
[332890873,1721639444428,-1255.6296301,0.0001185,2]
[332890874,1721639444437,-190.52816944,0.0001185,2]
[332890875,1721639444446,-500.0,0.00011856,2]
[332890876,1721639444455,-500.0,0.00011856,2]
[332890877,1721639444467,-500.0,0.00011865,2]
[332890878,1721639444478,-500.0,0.00011865,2]
[332890879,1721639444487,-500.0,0.00011874,2]
[332890880,1721639444496,-500.0,0.00011874,2]
[332890881,1721639444505,-500.0,0.00011882,2]
[332890882,1721639444515,-500.0,0.00011882,2]
[332890883,1721639444524,-500.0,0.00011891,2]
[332890884,1721639444533,-500.0,0.00011891,2]
[332890885,1721639444542,-2266.6527559,0.00011895,2]
[332890886,1721639444551,-272.58425099,0.00011899,2]
[332890887,1721639444561,-1152.07979419,0.00011899,3]
[332890888,1721639444570,-1085.23286383,0.00011899,3]
[332890889,1721639444579,-101033.52835068,0.000119,2]
[332890890,1721639445018,-300.33950224,0.000119,2]
[332890891,1721639445031,-898.108404,0.000119,2]
[332890897,1721639446982,-34437.0847425,0.000119,2]
[332890898,1721639448038,-4394.81242003,0.000119,2]
[332890899,1721639448053,-390.67842279,0.000119,2]
[332890900,1721639448064,-2580.0,0.000119,2]
[332890901,1721639448076,-351.65513555,0.000119,2]
[332890902,1721639448091,-855.65800931,0.000119,2]
[332890903,1721639448103,-300.02769946,0.000119,2]
[332890904,1721639448257,-222544.56740578,0.000119,2]
[332890905,1721639448295,-1286.0,0.00011699,2]
[332890906,1721639448304,-14214.0,0.000119,2]
[332890907,1721639448316,-542.39928832,0.000119,2]
[332890908,1721639448331,-1133.48489036,0.000119,2]
[332890909,1721639487134,222.64,9.142e-05,2]
[332890910,1721639503883,-1255.6296301,0.00011324,2]
[332890911,1721639503906,-222.64,0.00011406,2]
[332890912,1721639503927,-2631.7303699,0.000115,2]
[332890913,1721639610855,500.0,0.00010949,2]
[332890914,1721639667704,250.0,0.00010959,2]
[332890915,1721639667980,2086.26145021,0.00010949,2]
[332890916,1721639668002,416.11590321,0.00010949,2]
[332890917,1721639669744,300.61910687,0.00010949,2]
[332890918,1721639736443,150.0,0.00010959,2]
[332890919,1721639744055,3639.58102733,0.00010949,2]
[332890920,1721639858492,264.0,0.00010855,2]
[332890921,1721639871502,5229.68396259,0.00010853,2]
[332890922,1721639871526,10000.0,0.00010853,2]
[332890923,1721639871550,8670.31603741,0.00010853,2]
[332890924,1721639966623,250.0,0.00010818,2]
[332890925,1721640035385,500.0,0.00024,60]
[332890929,1721640119414,278.8,8.904e-05,2]
[332890934,1721640188187,191.85217756,0.00010793,2]
[332890935,1721640208769,609.03178503,0.00010793,2]
[332890936,1721640208791,337.52439667,0.00010793,2]
[332890937,1721640248303,250.0,0.00010959,2]
[332890939,1721640522561,250.0,0.00010738,2]
[332890940,1721640525419,1000.0,0.00010734,2]
[332890954,1721640632058,-195.22073523,0.00011004,2]
[332890955,1721640632067,-163.56605059,0.00011005,2]
[332890956,1721640632077,-300.0,0.00011104,2]
[332890957,1721640632087,-300.0,0.00011104,2]
[332890958,1721640632097,-150.0,0.00011104,2]
[332890959,1721640632106,-519.51657514,0.00011105,2]
[332890961,1721640632116,-649.0349847,0.00011105,2]
[332890962,1721640632126,-10641.04315764,0.00011105,2]
[332890963,1721640632138,-569.99999994,0.00011105,2]
[332890964,1721640632149,-351.899999,0.00011105,2]
[332890965,1721640632160,-3896.71456366,0.00011105,2]
[332890966,1721640632169,-531.60155554,0.00011105,2]
[332890967,1721640632178,-155.0,0.00011105,2]
[332890968,1721640632188,-158.7067884,0.00011105,2]
[332890969,1721640632197,-155.0,0.00011161,2]
[332890970,1721640632208,-278.8,0.00011168,2]
[332890971,1721640632217,-7435.22529623,0.00011186,2]
[332890972,1721640632228,-7800.69533894,0.00011186,2]
[332890973,1721640632240,-9741.80218521,0.00011186,2]
[332890974,1721640632284,-905.34153942,0.00011186,2]
[332890975,1721640632295,-636.79253411,0.00011186,2]
[332890976,1721640632307,-1568.7055678,0.00011186,2]
[332890977,1721640632316,-140.98354956,0.00011322,2]
[332890978,1721640632327,-14.01645044,0.00011322,2]
[332890979,1721640632336,-10663.92646917,0.00011324,2]
[332890980,1721640632346,-155.0,0.00011384,2]
[332890981,1721640632355,-184.105863,0.0001143,2]
[332890982,1721640632365,-182.103962,0.0001143,2]
[332890983,1721640632375,-538.656728,0.0001143,2]
[332890984,1721640632385,-223.868134,0.0001143,2]
[332890985,1721640632394,-6489.19090792,0.0001143,2]
[332890986,1721640632406,-2632.89108426,0.0001143,2]
[332890987,1721640632419,-830.63483782,0.0001143,2]
[332890988,1721640632428,-232.02003327,0.0001143,2]
[332890989,1721640632440,-8642.12564473,0.0001143,2]
[332890990,1721640632450,-174.329746,0.0001143,2]
[332890991,1721640632462,-183.04459,0.0001143,2]
[332890992,1721640632471,-174.43027,0.0001143,2]
[332890993,1721640632480,-155.0,0.00011525,2]
[332890994,1721640632489,-155.0,0.00011525,2]
[332890995,1721640632499,-538.656728,0.00011573,2]
[332890996,1721640632508,-223.868134,0.00011573,2]
[332890997,1721640632517,-7747.98428975,0.00011573,2]
[332890998,1721640632529,-2204.73254025,0.00011573,2]
[332890999,1721640632538,-1909.34871653,0.00011573,2]
[332891000,1721640632549,-1381.95190557,0.00011573,2]
[332891001,1721640632560,-431.18512968,0.00011573,2]
[332891002,1721640632571,-501.23538144,0.00011573,2]
[332891003,1721640632582,-2603.71306986,0.00011573,2]
[332891004,1721640632593,-2046.71147492,0.00011573,2]
[332891005,1721640632602,-174.329746,0.00011573,2]
[332891006,1721640632611,-1200.51723075,0.0001159,2]
[332891007,1721640632622,-849.96717983,0.0001159,2]
[332891009,1721640632656,-1224.56876972,0.0001159,2]
[332891012,1721640632667,-521.97670531,0.0001159,2]
[332891014,1721640632678,-1395.41908041,0.0001159,2]
[332891016,1721640632688,-2219.57379425,0.0001159,2]
[332891017,1721640632705,-409.12146104,0.0001159,2]
[332891018,1721640632716,-1284.77674596,0.0001159,2]
[332891020,1721640632727,-860.35582076,0.0001159,2]
[332891042,1721640632927,-1288.33356803,0.0001159,2]
[332891044,1721640632937,-299.99,0.0001159,2]
[332891046,1721640632947,-1388.7884,0.000116,2]
[332891048,1721640632958,-4330.5022,0.000116,2]
[332891050,1721640632967,-9968.8805,0.000116,2]
[332891052,1721640632977,-6046.84,0.000116,2]
[332891054,1721640632986,-179.99,0.000116,2]
[332891056,1721640632995,-174.43027,0.00011621,2]
[332891057,1721640633004,-189.3426764,0.00011662,2]
[332891058,1721640633013,-150.99,0.00011662,2]
[332891059,1721640633023,-12190.0,0.00011663,2]
[332891060,1721640633032,-54942.405,0.000117,2]
[332891061,1721640633041,-960.1101,0.000117,2]
[332891062,1721640633050,-2793.2759,0.000117,2]
[332891063,1721640633060,-1192.503,0.000117,2]
[332891064,1721640633069,-26754.219,0.000117,2]
[332891065,1721640633078,-1009.5846,0.000117,2]
[332891066,1721640633088,-493.7889,0.000117,2]
[332891067,1721640633097,-471.9058969,0.000117,2]
[332891068,1721640633106,-355.75,0.000117,2]
[332891069,1721640633116,-538.656728,0.00011716,2]
[332891070,1721640633125,-223.868134,0.00011716,2]
[332891071,1721640633134,-9952.71683,0.00011716,2]
[332891072,1721640633143,-8874.145678,0.00011716,2]
[332891073,1721640633153,-174.329746,0.00011716,2]
[332891074,1721640633162,-196.78351634,0.00011722,2]
[332891075,1721640633172,-471.90589686,0.00011725,2]
[332891076,1721640633181,-500.0,0.00011742,2]
[332891077,1721640633191,-4851.924,0.0001175,2]